Cogmind - Beta 16.1 @@@ ROGUE MODE // 2026.02.10 @ 19:09:13 Player: beans Result: Destroyed by G-47 Trooper with Particle Gun Performance ------------- Evolutions (0) 0 Regions Visited (2) 400 Robots Destroyed (14) 70 Value Destroyed (271) 271 Prototype IDs (0) 0 Alien Tech Used (0) 0 Bonus (63) 63 TOTAL SCORE: 804 Bonus ------- Follower Combat Kills 63 Cogmind --------- Core Integrity 0/250 Matter 288/300 Energy 100/100 System Corruption 0% Temperature Cool (15) Movement Core (50) Location -10/Mines Parts ------- > --- POWER (1) -------- (None) > --- PROPULSION (2) --- (None) > --- UTILITY (2) ------ Targeting Computer > --- WEAPON (2) ------- Light Assault Rifle Light Assault Rifle > --- INVENTORY (5) ---- Light Treads Light Treads Peak State ------------ > --- POWER ------------ (None) > --- PROPULSION ------- Light Treads Light Treads > --- UTILITY ---------- (None) > --- WEAPON ----------- Light Assault Rifle Grenade Launcher > --- INVENTORY -------- (None) [Rating: 4] Favorites ----------- Power None Propulsion Light Treads Treads Light Treads Utility Targeting Computer Processor Targeting Computer Weapon Light Assault Rifle Ballistic Gun Light Assault Rifle Launcher Grenade Launcher Build | -11 -10 -10 ------- Run | Yrd Mat Min Slots Evolved . | . . . Power . | . . . Propulsion . | . . . Utility . | . . . Weapon . | . . . Parts Attached 6 | 3 1 2 Power . | . . . Engine . | . . . Core . | . . . Reactor . | . . . Propulsion 2 | 2 . . Treads 2 | 2 . . Leg . | . . . Wheel . | . . . Hover . | . . . Flight . | . . . Utility 1 | . . 1 Device . | . . . Storage . | . . . Processor 1 | . . 1 Hackware . | . . . Protection . | . . . Artifact . | . . . Weapon 3 | 1 1 1 Energy Gun . | . . . Energy Cannon . | . . . Ballistic Gun 2 | 1 . 1 Ballistic Cannon . | . . . Launcher 1 | . 1 . Special Weapon . | . . . Impact Weapon . | . . . Slashing Weapon . | . . . Piercing Weapon . | . . . Special Melee Weapon . | . . . Unidentified Prototypes . | . . . Parts Lost 1 | . . 1 Power . | . . . Propulsion . | . . . Utility . | . . . Weapon 1 | . . 1 Highest Loss Streak 1 | . . 1 To Critical Strikes . | . . . Average Backups 1 | . . 2 Power . | . . . Propulsion . | . . 1 Utility . | . . . Weapon . | . . . Tool/Special . | . . . Unused Backups . | . . . Power . | . . . Propulsion . | . . . Utility . | . . . Weapon . | . . . Tool/Special . | . . . Average Slot Usage (%) 43 | . 55 28 Treads 17 | . 28 3 Processor 2 | . . 5 Ballistic Gun 14 | . 14 15 Launcher 8 | . 12 2 Peak Build Rating 4 | 3 4 4 Average Rating 2 | 2 3 1 On Entrance 2 | . 3 4 Avg Prop Armor Cover (%) . | . . . Naked Turns 30 | . . 30 Heaviest Build 4 | 1 4 4 Greatest Support 40 | 40 40 40 Greatest Overweight (x) . | . . . Average Overweight (x) . | . . . Largest Inventory Capacity 5 | 5 5 5 Average Capacity 5 | 5 5 5 Most Carried 5 | 3 1 5 Average Carried 1 | . . 2 Final Capacity 5 | 5 5 5 Final Carried 2 | . . 2 Class Distribution -------------------- 100% | Mutant Dominant Class ---------------- Mutant | -10/Materials Mutant | -10/Mines Resources | -11 -10 -10 ----------- Run | Yrd Mat Min Matter Collected 480 | 151 72 257 Remotely . | . . . Salvage Created 310 | . 211 99 Parts 17 | . 10 7 Haulers Intercepted 1 | . 1 . Recyclers Shooed 1 | . . 1 Parts Field Recycled . | . . . Retrieved Matter . | . . . Parts Self-Destructed . | . . . Prevented . | . . . Parts Restored . | . . . Kills | -11 -10 -10 ------- Run | Yrd Mat Min Combat Hostiles Destroyed 13 | . 6 7 Guns 4 | . 1 3 AOE 9 | . 5 4 Classes Destroyed 5 | . 4 1 Hauler 1 | . 1 . Recycler 1 | . 1 . Swarmer 7 | . 2 5 Grunt 5 | . 4 1 Assembled 1 | . . 1 Best Kill Streak 4 | . 3 4 Combat Bots Only 4 | . 2 4 Max Kills in Single Turn 3 | . 1 3 Gunslinging . | . . . Exploded 3 | . 1 3 Melee . | . . . Uniques/NPCs Destroyed . | . . . Combat | -11 -10 -10 -------- Run | Yrd Mat Min Hostile Shots Fired 55 | . 19 36 Missed 22 | . 10 12 Hits 33 | . 9 24 Melee 2 | . . 2 Projectile 31 | . 9 22 AOE 1 | . . 1 Critical Strikes 1 | . . 1 Damage Taken 486 | . 94 392 Core 256 | . . 256 Absorbed by Shields . | . . . Core Remaining (%) 100 | 100 . . Volleys Fired 41 | . 19 22 Largest 2 | . 2 2 Hottest 50 | . 50 50 Shots Fired 64 | . 32 32 Gun 47 | . 19 28 Cannon . | . . . Launcher 17 | . 13 4 Special . | . . . Kinetic 47 | . 19 28 Thermal . | . . . Explosive 17 | . 13 4 Electromagnetic . | . . . Robot Hit Streak 7 | . 7 4 Robot Miss Streak 3 | . 3 2 Penetration Max . | . . . Secondary Targets . | . . . Shots Hit Robots 31 | . 13 18 Core Hits 23 | . 12 11 Critical Kills . | . . . Critical Parts Destroyed . | . . . Critical Strikes . | . . . Melee Attacks . | . . . Impact . | . . . Slashing . | . . . Piercing . | . . . Sneak Attacks . | . . . Combat Hostiles . | . . . Follow-up Attacks . | . . . Damage Inflicted 1024 | . 701 323 Guns 229 | . 91 138 Cannons . | . . . Explosions 795 | . 610 185 Melee . | . . . Ramming . | . . . Kinetic 229 | . 91 138 Thermal . | . . . Explosive 795 | . 610 185 Electromagnetic . | . . . Impact . | . . . Slashing . | . . . Piercing . | . . . Highest Corruption . | . . . Average Corruption . | . . . Corruption Purged . | . . . Corruption Blocked . | . . . Overload Shots . | . . . Overflow Damage 26 | . 16 10 Projectiles . | . . . Explosions 26 | . 16 10 Melee . | . . . Knockbacks . | . . . Impact . | . . . Kinetic . | . . . Secondary . | . . . Self-Inflicted Damage 29 | . . 29 Shots 1 | . . 1 Rammed . | . . . Targets Rammed . | . . . Kicked . | . . . Crushed . | . . . Highest Temperature 15 | . 15 10 Average Temperature 6 | . 6 5 Received Heat Transfer 96 | . 42 54 Siege Activations . | . . . Martial Activations . | . . . Shielding Activations . | . . . Robots Disrupted . | . . . Combat Hostiles . | . . . Robots Corrupted . | . . . Combat Hostiles . | . . . Parts Fried . | . . . Impact Corruptions . | . . . Robots Melted . | . . . Combat Hostiles . | . . . Parts Melted 1 | . . 1 Heat Transferred . | . . . Parts Sabotaged . | . . . Parts Stolen . | . . . Parts Stripped . | . . . Power Chain Reactions . | . . . Alert | -11 -10 -10 ------- Run | Yrd Mat Min Maximum Alert Level 1 | . . 1 Low Security (%) 85 | 100 100 61 Level 1 14 | . . 38 Level 2 . | . . . Level 3 . | . . . Level 4 . | . . . Level 5 . | . . . High Security . | . . . Max Security . | . . . Peak Influence 299 | . 117 299 Initial 30 | . . 30 Average 102 | . 57 187 Influence Increases 579 | . 210 369 Destroy 0b10 Robot/C 340 | . 120 220 Destroy 0b10 Robot/NC 10 | . 10 . Destroy Leader 52 | . 12 40 Allied During Kill 20 | . . 20 Trap Triggered on 0b10 10 | . . 10 Disable Machine 15 | . 15 . Destroy Structure 72 | . 38 34 Lose Combat Pursuer 60 | . 15 45 Influence Decreases 310 | . 133 177 Entered New Map 47 | . . 47 Time Decay 233 | . 133 100 Lost Part 10 | . . 10 Lost Ally 20 | . . 20 Squads Dispatched . | . . . Investigation . | . . . Extermination . | . . . Reinforcement . | . . . Assault . | . . . Garrison . | . . . Intercept . | . . . Searches Triggered . | . . . Construction Impeded . | . . . Haulers Reinforced . | . . . Active Scanning Responses . | . . . Cargo Convoy Interrupts . | . . . Stealth | -11 -10 -10 --------- Run | Yrd Mat Min Distress Signals . | . . . Communications Jammed . | . . . Distress Signals . | . . . Times Spotted 36 | . 9 27 Peak Tracking Total 20 | . 3 20 Tactical Retreats 4 | . 1 3 Traps | -11 -10 -10 ------- Run | Yrd Mat Min Traps Triggered . | . . . Indirectly . | . . . Trap Hack Attempts . | . . . Triggered . | . . . Disarmed . | . . . Reprogrammed . | . . . Reused 1 | . . 1 Traps Extracted . | . . . Installed 3 | . . 3 Triggered 1 | . . 1 Most Traps Carried 2 | . . 2 Machines | -11 -10 -10 ---------- Run | Yrd Mat Min Machines Disabled 1 | . 1 . Max in Single Turn 1 | . 1 . Machines Repaired . | . . . Machines Dismantled . | . . . Machines Sabotaged . | . . . Overloaded Fab Kills . | . . . Hacking | -11 -10 -10 --------- Run | Yrd Mat Min Machines Accessed . | . . . Terminals . | . . . Fabricators . | . . . Repair Stations . | . . . Recycling Units . | . . . Scanalyzers . | . . . Garrison Access . | . . . Total Hacks . | . . . Successful . | . . . Failed . | . . . Catastrophic . | . . . Database Lockouts . | . . . Manual . | . . . Terminals . | . . . Fabricators . | . . . Repair Stations . | . . . Recycling Units . | . . . Scanalyzers . | . . . Garrison Access . | . . . Terminal Hacks . | . . . Fabricator Hacks . | . . . Repair Station Hacks . | . . . Recycling Unit Hacks . | . . . Scanalyzer . | . . . Garrison Access Hacks . | . . . Unauthorized Hacks . | . . . Terminals . | . . . Fabricators . | . . . Repair Stations . | . . . Recycling Units . | . . . Scanalyzers . | . . . Garrison Access . | . . . Data Cores Recovered . | . . . Used . | . . . Hacking Detections . | . . . Full Trace Events . | . . . Feedback Events . | . . . Feedback Blocked . | . . . Robot Schematics Acquired . | . . . Robots Built . | . . . Authchips . | . . . Time . | . . . Total Robot Build Rating . | . . . Part Schematics Acquired . | . . . Parts Built . | . . . Authchips . | . . . Time . | . . . Total Part Build Rating . | . . . Part Studies Acquired . | . . . Parts Repaired . | . . . Time . | . . . Parts Recycled . | . . . Recycled Matter . | . . . Retrieved Matter . | . . . Retrieved Components . | . . . Parts Scanalyzed . | . . . Part Schematics Acquired . | . . . Parts Damaged . | . . . Bothacking | -11 -10 -10 ------------ Run | Yrd Mat Min Used RIF Installer . | . . . Robots Hacked . | . . . Non-combat . | . . . Combat . | . . . Robot Hacks Applied . | . . . Relay Couplers Released . | . . . Fabnet Peak Effective % . | . . . Robots Rewired . | . . . Allies Hacked . | . . . Hacks Repelled . | . . . Allies | -11 -10 -10 -------- Run | Yrd Mat Min Total Allies 3 | . . 3 Largest Group 3 | . . 3 Highest-Rated Group 40 | . . 40 Highest-Rated Ally 16 | . . 16 Total Orders . | . . . Ally Attacks 19 | . . 19 Total Damage 220 | . . 220 Kills 6 | . . 6 Allies Corrupted . | . . . Allies Melted . | . . . Intel | -11 -10 -10 ------- Run | Yrd Mat Min Active Infowar (turns) . | . . . Robot Analysis Total . | . . . Derelict Logs Recovered . | . . . Drone Launches . | . . . Drone Recoveries . | . . . Exploration | -11 -10 -10 ------------- Run | Yrd Mat Min Turns Passed 549 | 39 302 208 Spaces Moved 459 | 29 159 271 Core 277 | 11 . 266 Treads 182 | 18 159 5 Legs . | . . . Wheels . | . . . Hover . | . . . Flight . | . . . Fastest Speed 50 | 50 160 50 Average Speed 93 | 118 160 52 Slowest Speed 160 | 160 160 160 Overloaded Moves . | . . . Propulsion Burnouts . | . . . Robots Hopped . | . . . Potential Cave-ins . | . . . Cave-ins Triggered . | . . . Exploration Rate (%) 37 | 3 51 59 Regions Visited 2 Branch Regions 1 Pre-discovered Areas . | . . . Known Exits Taken . | . . . Unknown Exits Taken 2 | 1 1 . Scrap Searched 1 | . . 1 Spaces Dug . | . . . Terrain Destroyed 73 | . 39 34 Melee . | . . . Projectile . | . . . AOE 73 | . 39 34 Terrain Rammed . | . . . Walls Destroyed . | . . . Machines Disabled . | . . . Actions | -11 -10 -10 --------- Run | Yrd Mat Min Total 528 | 34 179 315 Wait 3 | . . 3 Move 457 | 28 158 271 Hop . | . . . Pick Up 9 | 3 1 5 Fast Attach . | . . . Attach 8 | 3 1 4 Detach 4 | . . 4 Swap . | . . . Drop 3 | . . 3 Fire 41 | . 19 22 Melee . | . . . Ram . | . . . Kick . | . . . Crush . | . . . Escape Stasis . | . . . Rewire . | . . . Trap 3 | . . 3 Miscellaneous . | . . . Route ------- -11/Scrapyard -10/Materials -10/Mines (discovered 1 exit: [*Mat]) History --------- Turn | Location | Event 2 | -11/Scrapyard | Met Revision 17 4 | -11/Scrapyard | Discovered new exit (range 16) 40 | -11/Scrapyard | Entered Materials 308 | -10/Materials | Build established: Mutant 325 | -10/Materials | Discovered new exit (range 10) 342 | -10/Materials | Entered Mines 343 | -10/Mines | Assembled infested the area 376 | -10/Mines | Core integrity fell below 50% 419 | -10/Mines | Discovered new exit (range 7) 422 | -10/Mines | Assisted by bots powering up and referring to "LRC-V3" 439 | -10/Mines | Found a hidden stash of uninstalled traps 473 | -10/Mines | Core integrity fell below 20% 550 | -10/Mines | Destroyed by G-47 Trooper with Particle Gun Last Messages --------------- K-01 Serf collects debris. Dropped Proton Bomb Trap. Installed Proton Bomb Trap. K-01 Serf collects debris. Acquired Proton Bomb Trap. K-01 Serf collects debris. Dropped Proton Bomb Trap. Installed Proton Bomb Trap. Dropped Proton Bomb Trap. Installed Proton Bomb Trap. S-10 Pest destroyed. Mercenary 1a destroyed. S-10 Pest destroyed. Acquired 55 matter. Trooper 1b destroyed. Acquired 51 matter. Acquired Lgt. Assault Rifle. Ion Engine melted. G-34 Mercenary destroyed. Acquired 119 matter. Map ----- +----------------------------------------------------+ | ???????????????????????????????????????????????? | | ???????????????????????????????????????????????? | | ???????????????????####????####????????????????? | | ??????????????????## ##??## ##???????????????? | | ????????????####### #### ##??????????????? | | ??????????### #######????????? | | ?????###### #????????? | | ????## ### ## ###### #????????? | | ???## ##?## ### ##????# #????????? | | ???# # #???## #?### #?????# #????????? | | ???# ## #????## #### ####### #????????? | | #### ### #?????# #????????? | | &### #?# #????# ##### ####### #????????? | | ## #?# #??#? #???# #?????# #????????? | | ## ##?# #### ##???# #??#### ######???? | | # ##^##??# ##????# #??# #???? | | # =[=#???# ##???### #??# #???? | | # * [=#???##### ????## ##?# #???? | | ##!%#????????# ???## #?# #???? | | ### =#?????????# #?## #?###########???? | | #?#^%########### ## ##???????????????? | | ##?#=**= ##????????????????? | | ##??#[[*= ##?????????????????? | | ????################ ##??????????????????? | | ???????????????????# g ##??????????????????? | | ???????????????????# @ #??????????????????? | | ???????????????????# #????????????????? | | ???????????????????# gg ?????????????? | | ???????????????????# $t ""?????????? | | ??????????????????# ##### ????????? | | ??????????????????# ##t##??????""????????? | | ??????????????????## ##? #?????????????????? | | ???????????????????#######?? #?????????????????? | | ???????????????????????????? #?????????????????? | | ?????????????????????????????#?????????????????? | | ???????????????????????????????????????????????? | | ???????????????????????????????????????????????? | | ???????????????????????????????????????????????? | | ???????????????????????????????????????????????? | | ???????????????????????????????????????????????? | | ???????????????????????????????????????????????? | | ???????????????????????????????????????????????? | | ???????????????????????????????????????????????? | | ###????????????????????????????????????????????? | | ##???????????????????????????????????????????? | | ##??????????????????????????????????????????? | | ##?????????????????????????????????????????? | | "%?????????????????????????????????????????? | | "?????????????????????????????????????????? | | ! #????????????????????????????????????????????? | +----------------------------------------------------+ Best States ------------- Heat Dissipation 25 Energy Generation 5 Energy Capacity 100 Matter Stores 300 Matter Capacity 300 Sight Range 16 Terrain Scan Density 10 Evasion (%) 50 Targeting Accuracy 5 Recoil Reduction 2 Item Schematics ----------------- None Robot Schematics ------------------ None Fabricated ------------ Nothing Repaired ---------- Nothing Studied --------- None Alien Tech Used ----------------- None Achievements -------------- None Challenges ------------ None Game ------ Seed CargoGuidanceCarapace Manual? 0 Play Time 00:06:00 Cumulative 235.2 hours Start 2026.02.10 @ 19:05:31 End 2026.02.10 @ 19:09:13 Sessions 1 Manual Loads 0 Difficulty Rogue Special Mode None Game No. 651 Rogue 650 Adventurer 1 Explorer 0 Win Type - Total 0 Types 0/0/0/0/0/0/0/0/0/0 Lore% 65 Gallery% 61 Achievement% 40 Wizard Run 0 Options --------- Layout 1 ASCII 0 Keyboard 0 Movement Mouse Keybinds 0 Fullscreen 1 Font 24/Smallcaps Map View 50x35 Zoom Use 0% Tactical HUD 0 Map Filters NONE Filters NONE Steam 1 RUN: 764601a8-8d04-493d-9eba-aadb4ed4be38